[Event "Late-Titled-Tuesday-Blitz-October-24-2023"]
[Site "Chess.com"]
[Date "2023.10.24"]
[Round "10"]
[White "Roedor"]
[Black "Likvidator228"]
[Result "1-0"]
[WhiteElo "2451"]
[BlackElo "2557"]
[TimeControl "180+1"]
[EndTime "15:56:37 PDT"]
[Termination "Roedor won by resignation"]

1. d4 {[%clk 0:02:56.6]} 1... f5 {[%clk 0:02:58.6]} 2. Nf3 {[%clk 0:02:55.9]}
2... Nf6 {[%clk 0:02:57.7]} 3. g3 {[%clk 0:02:53.5]} 3... g6 {[%clk 0:02:57.8]}
4. Bg2 {[%clk 0:02:53.8]} 4... Bg7 {[%clk 0:02:58.5]} 5. O-O {[%clk 0:02:54.3]}
5... O-O {[%clk 0:02:59.1]} 6. b3 {[%clk 0:02:54.6]} 6... d6 {[%clk 0:02:58.8]}
7. Bb2 {[%clk 0:02:55.1]} 7... Ng4 {[%clk 0:02:57.6]} 8. Nbd2 {[%clk 0:02:53]}
8... Nc6 {[%clk 0:02:53.6]} 9. e4 {[%clk 0:02:43.6]} 9... e5 {[%clk 0:02:51]}
10. dxe5 {[%clk 0:02:40.7]} 10... Ngxe5 {[%clk 0:02:49.2]} 11. Nxe5 {[%clk
0:02:39.7]} 11... Nxe5 {[%clk 0:02:47.4]} 12. Rb1 {[%clk 0:02:25.7]} 12... f4
{[%clk 0:02:47.4]} 13. Nc4 {[%clk 0:02:22.4]} 13... Nxc4 {[%clk 0:02:42.2]} 14.
Qd5+ {[%clk 0:02:20.2]} 14... Rf7 {[%clk 0:02:36]} 15. bxc4 {[%clk 0:02:14.5]}
15... Bxb2 {[%clk 0:02:34]} 16. Rxb2 {[%clk 0:02:15.4]} 16... Qf6 {[%clk
0:02:33.9]} 17. Rb3 {[%clk 0:02:08.8]} 17... c6 {[%clk 0:02:31.8]} 18. Qd3
{[%clk 0:02:07.3]} 18... Bg4 {[%clk 0:02:26.7]} 19. f3 {[%clk 0:02:06.5]} 19...
Be6 {[%clk 0:02:15.2]} 20. Rfb1 {[%clk 0:02:06.1]} 20... b5 {[%clk 0:02:11.8]}
21. Qxd6 {[%clk 0:01:45.4]} 21... Bxc4 {[%clk 0:02:11.7]} 22. Qxf6 {[%clk
0:01:44.2]} 22... Rxf6 {[%clk 0:02:12.6]} 23. Ra3 {[%clk 0:01:40.5]} 23... a5
{[%clk 0:02:12.5]} 24. Bf1 {[%clk 0:01:36.2]} 24... Bxf1 {[%clk 0:02:10.5]} 25.
Kxf1 {[%clk 0:01:37.1]} 25... fxg3 {[%clk 0:02:10.9]} 26. hxg3 {[%clk
0:01:37.4]} 26... Rd6 {[%clk 0:02:10.6]} 27. Rd3 {[%clk 0:01:37.2]} 27... Rad8
{[%clk 0:02:07.1]} 28. Rxd6 {[%clk 0:01:36.9]} 28... Rxd6 {[%clk 0:02:07.1]} 29.
Ke2 {[%clk 0:01:37.5]} 29... Kf7 {[%clk 0:02:03.8]} 30. f4 {[%clk 0:01:34.6]}
30... h5 {[%clk 0:02:03.3]} 31. e5 {[%clk 0:01:31.8]} 31... Rd4 {[%clk
0:02:02.8]} 32. Rd1 {[%clk 0:01:29.4]} 32... Re4+ {[%clk 0:01:51.1]} 33. Kf3
{[%clk 0:01:27.2]} 33... Rc4 {[%clk 0:01:50.9]} 34. Rd7+ {[%clk 0:01:23.6]}
34... Kf8 {[%clk 0:01:49.3]} 35. Rd2 {[%clk 0:01:17.5]} 35... a4 {[%clk
0:01:40.1]} 36. Rg2 {[%clk 0:01:03.8]} 36... b4 {[%clk 0:01:37.4]} 37. g4 {[%clk
0:01:03.8]} 37... hxg4+ {[%clk 0:01:34.2]} 38. Kxg4 {[%clk 0:01:04.7]} 38... Kf7
{[%clk 0:01:27.7]} 39. Rd2 {[%clk 0:01:04.5]} 39... c5 {[%clk 0:01:25.2]} 40.
Rd7+ {[%clk 0:01:03.4]} 40... Kf8 {[%clk 0:01:23.5]} 41. Rd2 {[%clk 0:01:03.8]}
41... Rd4 {[%clk 0:01:21]} 42. Rh2 {[%clk 0:00:57.3]} 42... Kg7 {[%clk
0:01:20.4]} 43. Re2 {[%clk 0:00:52.5]} 43... c4 {[%clk 0:01:18.9]} 44. Kg5
{[%clk 0:00:47.1]} 44... Kf7 {[%clk 0:01:16.7]} 45. Rh2 {[%clk 0:00:41.3]} 45...
b3 {[%clk 0:01:07.4]} 46. axb3 {[%clk 0:00:41.2]} 46... axb3 {[%clk 0:01:06.5]}
47. cxb3 {[%clk 0:00:41.3]} 47... cxb3 {[%clk 0:01:07.4]} 48. Rh7+ {[%clk
0:00:40.2]} 48... Ke6 {[%clk 0:01:00.6]} 49. Rb7 {[%clk 0:00:40.6]} 49... Rd3
{[%clk 0:01:00.9]} 50. Rb6+ {[%clk 0:00:40.5]} 50... Kf7 {[%clk 0:00:58.8]} 51.
Rf6+ {[%clk 0:00:30.8]} 51... Kg7 {[%clk 0:00:58.7]} 52. Rxg6+ {[%clk
0:00:30.3]} 52... Kf7 {[%clk 0:00:58.2]} 53. Rb6 {[%clk 0:00:30.8]} 53... Ke7
{[%clk 0:00:58.4]} 54. Kf5 {[%clk 0:00:26.5]} 54... Rh3 {[%clk 0:00:57.8]} 55.
Rb7+ {[%clk 0:00:26.2]} 55... Kd8 {[%clk 0:00:57.8]} 56. e6 {[%clk 0:00:24.4]}
56... Kc8 {[%clk 0:00:53.8]} 57. Rb4 {[%clk 0:00:22.2]} 57... Kd8 {[%clk
0:00:50.7]} 58. Kf6 {[%clk 0:00:20.5]} 58... Rh6+ {[%clk 0:00:50.6]} 59. Ke5
{[%clk 0:00:20.8]} 59... Rh3 {[%clk 0:00:47.6]} 60. f5 {[%clk 0:00:20.5]} 60...
Re3+ {[%clk 0:00:48.1]} 61. Kf6 {[%clk 0:00:20.7]} 61... Kc7 {[%clk 0:00:47.9]}
62. Kf7 {[%clk 0:00:19.6]} 62... Kd6 {[%clk 0:00:47.9]} 63. f6 {[%clk
0:00:14.5]} 63... Kc5 {[%clk 0:00:41]} 64. Rb8 {[%clk 0:00:14.3]} 64... Kc6
{[%clk 0:00:38.7]} 65. e7 {[%clk 0:00:14.3]} 65... Kc7 {[%clk 0:00:39.3]} 66.
Rb4 {[%clk 0:00:13.7]} 66... Kd7 {[%clk 0:00:39.1]} 67. Rd4+ {[%clk 0:00:13.6]}
67... Kc6 {[%clk 0:00:39.4]} 68. e8=Q+ {[%clk 0:00:13.5]} 68... Rxe8 {[%clk
0:00:39.2]} 69. Kxe8 {[%clk 0:00:14.4]} 69... Kc5 {[%clk 0:00:39.8]} 70. Rd1
{[%clk 0:00:14.1]} 70... b2 {[%clk 0:00:39.4]} 1-0

[Event "Late-Titled-Tuesday-Blitz-October-24-2023"]
[Site "Chess.com"]
[Date "2023.10.24"]
[Round "10"]
[White "lluiss"]
[Black "RCone"]
[Result "0-1"]
[WhiteElo "2204"]
[BlackElo "2398"]
[TimeControl "180+1"]
[EndTime "15:56:39 PDT"]
[Termination "RCone won on time"]

1. Nf3 {[%clk 0:03:00.9]} 1... d6 {[%clk 0:02:59.4]} 2. d4 {[%clk 0:03:00.2]}
2... Nf6 {[%clk 0:02:58.9]} 3. g3 {[%clk 0:03:00.3]} 3... g6 {[%clk 0:02:58.6]}
4. Bg2 {[%clk 0:03:00.7]} 4... Bg7 {[%clk 0:02:58.5]} 5. O-O {[%clk 0:03:01.6]}
5... O-O {[%clk 0:02:58.3]} 6. c4 {[%clk 0:03:01.8]} 6... Nc6 {[%clk 0:02:57.7]}
7. Nc3 {[%clk 0:03:01.9]} 7... a6 {[%clk 0:02:57.8]} 8. d5 {[%clk 0:03:00.9]}
8... Na5 {[%clk 0:02:55.8]} 9. b3 {[%clk 0:03:01.5]} 9... c5 {[%clk 0:02:55.5]}
10. dxc6 {[%clk 0:03:00.6]} 10... Nxc6 {[%clk 0:02:55.1]} 11. Be3 {[%clk
0:03:01.1]} 11... Ng4 {[%clk 0:02:44.1]} 12. Bd2 {[%clk 0:03:00.5]} 12... Bd7
{[%clk 0:02:37.4]} 13. Rc1 {[%clk 0:02:55.3]} 13... Rc8 {[%clk 0:02:36.8]} 14.
a4 {[%clk 0:02:44.7]} 14... a5 {[%clk 0:02:22.3]} 15. Nb5 {[%clk 0:02:32]} 15...
Nb4 {[%clk 0:02:19]} 16. h3 {[%clk 0:02:14.9]} 16... Nf6 {[%clk 0:02:17.1]} 17.
Nfd4 {[%clk 0:02:09.9]} 17... Bc6 {[%clk 0:02:12.1]} 18. Nxc6 {[%clk 0:02:09.3]}
18... bxc6 {[%clk 0:02:11.7]} 19. Nc3 {[%clk 0:02:01.8]} 19... Rb8 {[%clk
0:02:07.8]} 20. Ne4 {[%clk 0:01:54.2]} 20... c5 {[%clk 0:02:05.1]} 21. Nc3
{[%clk 0:01:48.6]} 21... Qb6 {[%clk 0:01:47.7]} 22. Rb1 {[%clk 0:01:41]} 22...
e6 {[%clk 0:01:46.1]} 23. e4 {[%clk 0:01:33.8]} 23... Nc6 {[%clk 0:01:38.9]} 24.
Be3 {[%clk 0:01:30.6]} 24... Rfd8 {[%clk 0:01:36.7]} 25. Nb5 {[%clk 0:01:14.4]}
25... Nb4 {[%clk 0:01:18.9]} 26. Qd2 {[%clk 0:01:07.8]} 26... d5 {[%clk
0:01:12.8]} 27. cxd5 {[%clk 0:01:00.5]} 27... exd5 {[%clk 0:01:12.4]} 28. exd5
{[%clk 0:00:46.1]} 28... Nfxd5 {[%clk 0:01:11.5]} 29. Qc1 {[%clk 0:00:29.5]}
29... Nxe3 {[%clk 0:00:52.9]} 30. Qxe3 {[%clk 0:00:29]} 30... Nc2 {[%clk
0:00:45.3]} 31. Qf3 {[%clk 0:00:26.2]} 31... Nd4 {[%clk 0:00:45]} 32. Nxd4
{[%clk 0:00:25.5]} 32... Bxd4 {[%clk 0:00:44.4]} 33. Rfd1 {[%clk 0:00:22.4]}
33... Qb4 {[%clk 0:00:31.4]} 34. Bf1 {[%clk 0:00:22.1]} 34... Rd6 {[%clk
0:00:23.7]} 35. Rxd4 {[%clk 0:00:05.9]} 35... cxd4 {[%clk 0:00:20.5]} 36. Bc4
{[%clk 0:00:06.8]} 36... Qb7 {[%clk 0:00:17.4]} 37. Qxb7 {[%clk 0:00:05.2]}
37... Rxb7 {[%clk 0:00:18.3]} 38. Rd1 {[%clk 0:00:05.4]} 38... Kg7 {[%clk
0:00:15.6]} 39. Rd3 {[%clk 0:00:05.4]} 39... f5 {[%clk 0:00:14.9]} 40. Kg2
{[%clk 0:00:05.5]} 40... Kf6 {[%clk 0:00:14.3]} 41. Kf3 {[%clk 0:00:05.6]} 41...
g5 {[%clk 0:00:14.3]} 42. g4 {[%clk 0:00:04.9]} 42... f4 {[%clk 0:00:11.6]} 43.
Rd2 {[%clk 0:00:02]} 43... Re7 {[%clk 0:00:09]} 44. Rd3 {[%clk 0:00:01.9]} 44...
Re1 {[%clk 0:00:08.5]} 45. Rd2 {[%clk 0:00:01.9]} 45... h6 {[%clk 0:00:06.8]}
46. Rb2 {[%clk 0:00:01.9]} 46... Rh1 {[%clk 0:00:04.7]} 47. Rd2 {[%clk
0:00:01.4]} 47... Rxh3+ {[%clk 0:00:04.3]} 48. Kg2 {[%clk 0:00:02.3]} 48... Rc3
{[%clk 0:00:03.7]} 49. f3 {[%clk 0:00:02.1]} 49... d3 {[%clk 0:00:02.9]} 0-1

[Event "Late-Titled-Tuesday-Blitz-October-24-2023"]
[Site "Chess.com"]
[Date "2023.10.24"]
[Round "10"]
[White "HaryKane"]
[Black "wild3000"]
[Result "1-0"]
[WhiteElo "2525"]
[BlackElo "2403"]
[TimeControl "180+1"]
[EndTime "15:56:48 PDT"]
[Termination "HaryKane won on time"]

1. e4 {[%clk 0:03:00.9]} 1... e5 {[%clk 0:02:56.8]} 2. Nf3 {[%clk 0:02:58.7]}
2... Nc6 {[%clk 0:02:56.5]} 3. Bb5 {[%clk 0:02:58.3]} 3... a6 {[%clk 0:02:56.5]}
4. Ba4 {[%clk 0:02:58.6]} 4... d6 {[%clk 0:02:56.8]} 5. O-O {[%clk 0:02:58.4]}
5... Bd7 {[%clk 0:02:56.8]} 6. Re1 {[%clk 0:02:57.3]} 6... Nf6 {[%clk
0:02:56.7]} 7. d4 {[%clk 0:02:55.1]} 7... Be7 {[%clk 0:02:56.6]} 8. dxe5 {[%clk
0:02:51]} 8... Nxe5 {[%clk 0:02:54.6]} 9. Bxd7+ {[%clk 0:02:50.7]} 9... Qxd7
{[%clk 0:02:53.8]} 10. Nd4 {[%clk 0:02:50]} 10... O-O {[%clk 0:02:44.9]} 11. Bf4
{[%clk 0:02:49.3]} 11... Ng6 {[%clk 0:02:43.4]} 12. Bg3 {[%clk 0:02:48]} 12...
Rfe8 {[%clk 0:02:41]} 13. Nc3 {[%clk 0:02:47.8]} 13... Bf8 {[%clk 0:02:36.5]}
14. Qd2 {[%clk 0:02:41.1]} 14... Nh5 {[%clk 0:02:29.6]} 15. Rad1 {[%clk
0:02:37.7]} 15... Nxg3 {[%clk 0:02:27.3]} 16. hxg3 {[%clk 0:02:38.6]} 16... Ne5
{[%clk 0:02:06.7]} 17. Nd5 {[%clk 0:02:29.6]} 17... Nc6 {[%clk 0:01:54.7]} 18.
Nf5 {[%clk 0:02:19.6]} 18... Ne7 {[%clk 0:01:53.8]} 19. Nh6+ {[%clk 0:02:15.7]}
19... Kh8 {[%clk 0:01:51]} 20. Nxf7+ {[%clk 0:02:15.3]} 20... Kg8 {[%clk
0:01:51.5]} 21. Nh6+ {[%clk 0:01:56.5]} 21... Kh8 {[%clk 0:01:51.3]} 22. Nxe7
{[%clk 0:01:42.3]} 22... Qxe7 {[%clk 0:01:35.9]} 23. Nf5 {[%clk 0:01:41.6]}
23... Qf7 {[%clk 0:01:31.6]} 24. b3 {[%clk 0:01:36.1]} 24... g6 {[%clk
0:01:30.6]} 25. Nh4 {[%clk 0:01:28.3]} 25... Bg7 {[%clk 0:01:28.9]} 26. c4
{[%clk 0:01:25.3]} 26... a5 {[%clk 0:01:28]} 27. a4 {[%clk 0:01:16.2]} 27... Re7
{[%clk 0:01:19.3]} 28. Re2 {[%clk 0:01:14.6]} 28... b6 {[%clk 0:01:19]} 29. Qd5
{[%clk 0:01:11.4]} 29... Rae8 {[%clk 0:01:14.3]} 30. Qxf7 {[%clk 0:01:03.5]}
30... Rxf7 {[%clk 0:01:15.2]} 31. Rd3 {[%clk 0:00:33.6]} 31... Rfe7 {[%clk
0:01:12.5]} 32. f3 {[%clk 0:00:27.7]} 32... Bf6 {[%clk 0:01:11]} 33. Kh2 {[%clk
0:00:23.3]} 33... Kg7 {[%clk 0:01:09]} 34. Kh3 {[%clk 0:00:23.6]} 34... h5
{[%clk 0:00:54.3]} 35. g4 {[%clk 0:00:22]} 35... Rh8 {[%clk 0:00:44.5]} 36. g3
{[%clk 0:00:21.7]} 36... Re5 {[%clk 0:00:35.5]} 37. Rd5 {[%clk 0:00:18.7]} 37...
Re7 {[%clk 0:00:18.9]} 38. gxh5 {[%clk 0:00:18]} 38... Bxh4 {[%clk 0:00:16.9]}
39. Kxh4 {[%clk 0:00:17.9]} 39... gxh5 {[%clk 0:00:16.5]} 40. Rxh5 {[%clk
0:00:16.6]} 40... Rxh5+ {[%clk 0:00:16.5]} 41. Kxh5 {[%clk 0:00:17.5]} 41... Kf6
{[%clk 0:00:16.6]} 42. Kg4 {[%clk 0:00:16.2]} 42... Ke5 {[%clk 0:00:16.4]} 43.
Rd2 {[%clk 0:00:12.9]} 43... Rh7 {[%clk 0:00:15.1]} 44. Rd5+ {[%clk 0:00:11.7]}
44... Ke6 {[%clk 0:00:15.2]} 45. Rh5 {[%clk 0:00:10.8]} 45... Rg7+ {[%clk
0:00:14.6]} 46. Kf4 {[%clk 0:00:11.3]} 46... Kd7 {[%clk 0:00:13.3]} 47. g4
{[%clk 0:00:11]} 47... Kc6 {[%clk 0:00:13.5]} 48. Ke3 {[%clk 0:00:11.1]} 48...
Kd7 {[%clk 0:00:11.1]} 49. Rf5 {[%clk 0:00:11.3]} 49... Rh7 {[%clk 0:00:10.8]}
50. Rh5 {[%clk 0:00:11.3]} 50... Rg7 {[%clk 0:00:10.5]} 51. g5 {[%clk
0:00:11.8]} 51... Ke6 {[%clk 0:00:09.9]} 52. f4 {[%clk 0:00:12.4]} 52... Kd7
{[%clk 0:00:07]} 53. Rh6 {[%clk 0:00:12]} 53... Kc6 {[%clk 0:00:07]} 54. g6
{[%clk 0:00:11.4]} 54... Kc5 {[%clk 0:00:03.7]} 55. f5 {[%clk 0:00:12]} 55... c6
{[%clk 0:00:03.6]} 56. f6 {[%clk 0:00:11.8]} 56... Rg8 {[%clk 0:00:03.1]} 57. g7
{[%clk 0:00:10.7]} 57... d5 {[%clk 0:00:02.4]} 58. exd5 {[%clk 0:00:10.6]} 58...
Re8+ {[%clk 0:00:01.6]} 59. Kf3 {[%clk 0:00:09.8]} 1-0

[Event "Late-Titled-Tuesday-Blitz-October-24-2023"]
[Site "Chess.com"]
[Date "2023.10.24"]
[Round "10"]
[White "Fradi82"]
[Black "Eloist"]
[Result "0-1"]
[WhiteElo "2347"]
[BlackElo "2445"]
[TimeControl "180+1"]
[EndTime "15:56:52 PDT"]
[Termination "Eloist won by checkmate"]

1. e4 {[%clk 0:03:00.9]} 1... e6 {[%clk 0:02:58.4]} 2. d4 {[%clk 0:03:00]} 2...
d5 {[%clk 0:02:58.5]} 3. e5 {[%clk 0:03:00.3]} 3... c5 {[%clk 0:02:58.2]} 4. Qg4
{[%clk 0:03:01]} 4... cxd4 {[%clk 0:02:57.3]} 5. Bd3 {[%clk 0:03:01.2]} 5... Nc6
{[%clk 0:02:56.9]} 6. Nf3 {[%clk 0:03:01.6]} 6... f6 {[%clk 0:02:53.3]} 7. Qh5+
{[%clk 0:02:45.3]} 7... Kd7 {[%clk 0:02:52]} 8. O-O {[%clk 0:02:40.2]} 8... Qe8
{[%clk 0:02:13.2]} 9. Qxe8+ {[%clk 0:00:40.9]} 9... Kxe8 {[%clk 0:02:14.1]} 10.
Re1 {[%clk 0:00:38.2]} 10... fxe5 {[%clk 0:02:07.1]} 11. Nxe5 {[%clk 0:00:37.9]}
11... Nxe5 {[%clk 0:02:04.5]} 12. Rxe5 {[%clk 0:00:38.2]} 12... Bd6 {[%clk
0:02:01.4]} 13. Re1 {[%clk 0:00:38]} 13... Kf7 {[%clk 0:01:56.2]} 14. f4 {[%clk
0:00:36.2]} 14... Ne7 {[%clk 0:01:48.4]} 15. Nd2 {[%clk 0:00:36]} 15... Nc6
{[%clk 0:01:46.6]} 16. Nf3 {[%clk 0:00:35.7]} 16... h6 {[%clk 0:01:44.8]} 17.
Bd2 {[%clk 0:00:25.6]} 17... Bd7 {[%clk 0:01:42.6]} 18. Rf1 {[%clk 0:00:24.1]}
18... Rhf8 {[%clk 0:01:37.7]} 19. Rae1 {[%clk 0:00:19.4]} 19... Kg8 {[%clk
0:01:37.3]} 20. Ne5 {[%clk 0:00:17.1]} 20... Nxe5 {[%clk 0:01:29.7]} 21. fxe5
{[%clk 0:00:18]} 21... Rxf1+ {[%clk 0:01:23.5]} 22. Kxf1 {[%clk 0:00:18.9]}
22... Rf8+ {[%clk 0:01:21.4]} 23. Kg1 {[%clk 0:00:18.3]} 23... Bc5 {[%clk
0:01:11.7]} 24. g3 {[%clk 0:00:14.9]} 24... a6 {[%clk 0:01:11.1]} 25. Kg2 {[%clk
0:00:14.3]} 25... Bb5 {[%clk 0:01:10.6]} 26. Bxb5 {[%clk 0:00:13.5]} 26... axb5
{[%clk 0:01:10.3]} 27. Rf1 {[%clk 0:00:11.3]} 27... Ra8 {[%clk 0:00:54.5]} 28.
a3 {[%clk 0:00:10.2]} 28... b4 {[%clk 0:00:50.8]} 29. axb4 {[%clk 0:00:05.9]}
29... Bb6 {[%clk 0:00:47.3]} 30. Rb1 {[%clk 0:00:02.1]} 30... Bc7 {[%clk
0:00:43]} 31. Re1 {[%clk 0:00:01.2]} 31... Ra2 {[%clk 0:00:41.7]} 32. Bc1 {[%clk
0:00:01.6]} 32... Ra1 {[%clk 0:00:34.9]} 33. Kf3 {[%clk 0:00:01.7]} 33... Bxe5
{[%clk 0:00:33.1]} 34. Rxe5 {[%clk 0:00:01.3]} 34... Rxc1 {[%clk 0:00:32.8]} 35.
Rxe6 {[%clk 0:00:02]} 35... Rxc2 {[%clk 0:00:32.8]} 36. Rb6 {[%clk 0:00:02.6]}
36... Rxh2 {[%clk 0:00:26.1]} 37. Rxb7 {[%clk 0:00:02.8]} 37... Rxb2 {[%clk
0:00:25.6]} 38. b5 {[%clk 0:00:03.3]} 38... Rb3+ {[%clk 0:00:23.8]} 39. Ke2
{[%clk 0:00:03.3]} 39... Rxg3 {[%clk 0:00:22.2]} 40. Rd7 {[%clk 0:00:04]} 40...
Rb3 {[%clk 0:00:17.2]} 41. Rxd5 {[%clk 0:00:04.4]} 41... g5 {[%clk 0:00:16]} 42.
Rxd4 {[%clk 0:00:03.5]} 42... Rxb5 {[%clk 0:00:15.5]} 43. Kf2 {[%clk 0:00:03.9]}
43... Kg7 {[%clk 0:00:15.4]} 44. Kg3 {[%clk 0:00:03.8]} 44... Kg6 {[%clk
0:00:14.1]} 45. Rd6+ {[%clk 0:00:04.1]} 45... Kg7 {[%clk 0:00:13.9]} 46. Rd7+
{[%clk 0:00:04.3]} 46... Kg6 {[%clk 0:00:14.3]} 47. Rd6+ {[%clk 0:00:04.7]}
47... Kh5 {[%clk 0:00:14.6]} 48. Rd4 {[%clk 0:00:03.6]} 48... Rb6 {[%clk
0:00:13.8]} 49. Rd5 {[%clk 0:00:03.7]} 49... Kg6 {[%clk 0:00:13.8]} 50. Rc5
{[%clk 0:00:03.2]} 50... h5 {[%clk 0:00:14]} 51. Ra5 {[%clk 0:00:03.1]} 51...
Rb3+ {[%clk 0:00:13.9]} 52. Kg2 {[%clk 0:00:03.1]} 52... h4 {[%clk 0:00:14.2]}
53. Ra8 {[%clk 0:00:03.7]} 53... Kh5 {[%clk 0:00:14.2]} 54. Rh8+ {[%clk
0:00:04.2]} 54... Kg4 {[%clk 0:00:14.4]} 55. Ra8 {[%clk 0:00:04.3]} 55... Rb2+
{[%clk 0:00:14.8]} 56. Kg1 {[%clk 0:00:04.2]} 56... Rb3 {[%clk 0:00:11.2]} 57.
Ra4+ {[%clk 0:00:04.2]} 57... Kg3 {[%clk 0:00:11]} 58. Kf1 {[%clk 0:00:04.2]}
58... h3 {[%clk 0:00:10.7]} 59. Ra2 {[%clk 0:00:02.6]} 59... g4 {[%clk
0:00:09.5]} 60. Kg1 {[%clk 0:00:01.8]} 60... Rb1# {[%clk 0:00:09.4]} 0-1

[Event "Late-Titled-Tuesday-Blitz-October-24-2023"]
[Site "Chess.com"]
[Date "2023.10.24"]
[Round "10"]
[White "mind1mover"]
[Black "Sanyura"]
[Result "1-0"]
[WhiteElo "2800"]
[BlackElo "2610"]
[TimeControl "180+1"]
[EndTime "15:56:55 PDT"]
[Termination "mind1mover won on time"]

1. Nf3 {[%clk 0:03:00.9]} 1... Nf6 {[%clk 0:02:59.4]} 2. b3 {[%clk 0:03:01.3]}
2... g6 {[%clk 0:03:00.3]} 3. Bb2 {[%clk 0:03:01.8]} 3... Bg7 {[%clk 0:03:00.9]}
4. g3 {[%clk 0:03:02.7]} 4... O-O {[%clk 0:03:01.5]} 5. Bg2 {[%clk 0:03:03.3]}
5... d6 {[%clk 0:03:02.2]} 6. d4 {[%clk 0:03:03.3]} 6... Nbd7 {[%clk 0:03:02.9]}
7. O-O {[%clk 0:03:03.9]} 7... e5 {[%clk 0:03:03.6]} 8. dxe5 {[%clk 0:03:04.4]}
8... Ng4 {[%clk 0:03:04.3]} 9. c4 {[%clk 0:03:05]} 9... Ngxe5 {[%clk 0:03:04.9]}
10. Nc3 {[%clk 0:03:05.7]} 10... a5 {[%clk 0:03:05.1]} 11. Qd2 {[%clk
0:03:06.3]} 11... Nxf3+ {[%clk 0:02:57.6]} 12. Bxf3 {[%clk 0:03:07.2]} 12... Ne5
{[%clk 0:02:58.2]} 13. Bg2 {[%clk 0:03:07.7]} 13... a4 {[%clk 0:02:55.4]} 14.
Nd5 {[%clk 0:02:49]} 14... c6 {[%clk 0:02:48.8]} 15. Ne3 {[%clk 0:02:42.6]}
15... axb3 {[%clk 0:02:41.4]} 16. axb3 {[%clk 0:02:43.5]} 16... Rxa1 {[%clk
0:02:41.2]} 17. Rxa1 {[%clk 0:02:44.4]} 17... Qb6 {[%clk 0:02:41.3]} 18. b4
{[%clk 0:02:22.8]} 18... Be6 {[%clk 0:02:33.7]} 19. Rc1 {[%clk 0:01:45.4]} 19...
Ra8 {[%clk 0:02:25.2]} 20. Qxd6 {[%clk 0:01:27.9]} 20... Nf3+ {[%clk 0:01:45.8]}
21. Bxf3 {[%clk 0:01:28.1]} 21... Bxb2 {[%clk 0:01:46.6]} 22. Rd1 {[%clk
0:01:28.6]} 22... Bc3 {[%clk 0:01:15.9]} 23. b5 {[%clk 0:01:20.5]} 23... Rc8
{[%clk 0:00:59.3]} 24. bxc6 {[%clk 0:01:01.1]} 24... bxc6 {[%clk 0:00:58.7]} 25.
Nd5 {[%clk 0:00:48.7]} 25... Bxd5 {[%clk 0:00:25.5]} 26. cxd5 {[%clk 0:00:48.5]}
26... Rd8 {[%clk 0:00:18.2]} 27. Qa3 {[%clk 0:00:32]} 27... Bb2 {[%clk 0:00:07]}
28. Qa4 {[%clk 0:00:24.8]} 28... cxd5 {[%clk 0:00:06.7]} 29. Bxd5 {[%clk
0:00:25.3]} 29... Kg7 {[%clk 0:00:05.6]} 30. Rd3 {[%clk 0:00:21]} 30... Bf6
{[%clk 0:00:04]} 31. Kg2 {[%clk 0:00:14.9]} 31... Qc5 {[%clk 0:00:03.6]} 32. Qb3
{[%clk 0:00:12.3]} 32... Rd7 {[%clk 0:00:03]} 33. h4 {[%clk 0:00:09.4]} 33... h5
{[%clk 0:00:03.1]} 34. Qa2 {[%clk 0:00:08.5]} 34... Qb6 {[%clk 0:00:01.7]} 35.
Qc4 {[%clk 0:00:08.3]} 35... Qa5 {[%clk 0:00:01.7]} 36. Qe4 {[%clk 0:00:06]}
36... Qc7 {[%clk 0:00:02.1]} 37. Bb3 {[%clk 0:00:05.6]} 37... Re7 {[%clk
0:00:02.4]} 38. Qf3 {[%clk 0:00:05]} 38... Qb7 {[%clk 0:00:02.9]} 39. Bd5 {[%clk
0:00:04.2]} 39... Qb2 {[%clk 0:00:02.6]} 40. Re3 {[%clk 0:00:02]} 40... Rxe3
{[%clk 0:00:01.9]} 41. Qxe3 {[%clk 0:00:02.9]} 41... Qd4 {[%clk 0:00:02]} 42.
Qf3 {[%clk 0:00:03.5]} 42... Qe5 {[%clk 0:00:02.3]} 43. Bc4 {[%clk 0:00:03.7]}
43... Qd6 {[%clk 0:00:02.9]} 44. Bb3 {[%clk 0:00:04.1]} 44... Qe7 {[%clk
0:00:03.4]} 45. e3 {[%clk 0:00:04.5]} 45... Qc7 {[%clk 0:00:03.8]} 46. Bd5
{[%clk 0:00:02.2]} 46... Qe7 {[%clk 0:00:04.3]} 47. Qf4 {[%clk 0:00:01.4]} 47...
Qd7 {[%clk 0:00:04.4]} 48. Qe4 {[%clk 0:00:01.7]} 48... Qe7 {[%clk 0:00:04.2]}
49. Qf3 {[%clk 0:00:01.9]} 49... Qd7 {[%clk 0:00:04.5]} 50. e4 {[%clk
0:00:02.3]} 50... Qe7 {[%clk 0:00:05.1]} 51. g4 {[%clk 0:00:02.5]} 51... hxg4
{[%clk 0:00:04.9]} 52. Qxg4 {[%clk 0:00:03.3]} 52... Bxh4 {[%clk 0:00:05.6]} 53.
f4 {[%clk 0:00:03.7]} 53... g5 {[%clk 0:00:02.2]} 54. e5 {[%clk 0:00:02.8]}
54... Qd8 {[%clk 0:00:01.2]} 55. Qf3 {[%clk 0:00:02.2]} 1-0